lending/lending_fUSD_20240610
["ID","MTS","AMOUNT","RATE_DAILY","PERIOD"]
[328973169,1718035835941,-1249.14,0.00029999,4]
[328973170,1718035835952,-1348.41,0.00029999,4]
[328973171,1718035835962,-1249.14,0.00029999,4]
[328973172,1718035835972,-1348.41,0.00029999,4]
[328973173,1718035835983,-1249.14,0.00029999,4]
[328973174,1718035835994,-1348.41,0.00029999,4]
[328973175,1718035836004,-1348.41,0.00029999,4]
[328973176,1718035836015,-1249.14,0.00029999,4]
[328973177,1718035836026,-1348.41,0.00029999,4]
[328973178,1718035836037,-1249.14,0.00029999,4]
[328973179,1718035836047,-1348.41,0.00029999,4]
[328973180,1718035836057,-1249.14,0.00029999,4]
[328973181,1718035836067,-1348.41,0.00029999,4]
[328973182,1718035836077,-1249.14,0.00029999,4]
[328973183,1718035836087,-1348.41,0.00029999,4]
[328973184,1718035836097,-1249.14,0.00029999,4]
[328973185,1718035836108,-1348.41,0.00029999,4]
[328973186,1718035836118,-500.0,0.00029999,4]
[328973187,1718035836128,-1249.14,0.00029999,4]
[328973188,1718035836137,-1348.41,0.00029999,4]
[328973189,1718035836147,-1249.14,0.00029999,4]
[328973190,1718035836156,-500.0,0.00029999,4]
[328973191,1718035836165,-1348.41,0.00029999,4]
[328973192,1718035836175,-500.0,0.00029999,4]
[328973193,1718035836185,-1249.14,0.00029999,4]
[328973194,1718035836194,-500.0,0.00029999,4]
[328973195,1718035836205,-1348.41,0.00029999,4]
[328973196,1718035836215,-562.67636023,0.00029999,4]
[328973197,1718035836226,-1249.14,0.00029999,4]
[328973198,1718035836237,-500.0,0.00029999,4]
[328973199,1718035836247,-1348.41,0.00029999,4]
[328973200,1718035836258,-1249.14,0.00029999,4]
[328973201,1718035836268,-1348.41,0.00029999,4]
[328973202,1718035836279,-500.0,0.00029999,4]
[328973203,1718035836290,-1249.14,0.00029999,4]
[328973204,1718035836301,-500.0,0.00029999,4]
[328973205,1718035836311,-1249.14,0.00029999,4]
[328973206,1718035836322,-500.0,0.00029999,4]
[328973207,1718035836332,-1249.14,0.00029999,4]
[328973208,1718035836344,-1348.41,0.00029999,4]
[328973209,1718035836354,-500.0,0.00029999,4]
[328973210,1718035836367,-1249.14,0.00029999,4]
[328973211,1718035836377,-500.0,0.00029999,4]
[328973212,1718035836388,-1348.41,0.00029999,4]
[328973213,1718035836399,-1249.14,0.00029999,4]
[328973214,1718035836410,-500.0,0.00029999,4]
[328973215,1718035836421,-1249.14,0.00029999,4]
[328973216,1718035836431,-1348.41,0.00029999,4]
[328973217,1718035836441,-500.0,0.00029999,4]
[328973218,1718035836451,-1249.14,0.00029999,4]
[328973219,1718035836462,-1348.41,0.00029999,4]
[328973220,1718035836476,-500.0,0.00029999,4]
[328973221,1718035836486,-1348.41,0.00029999,4]
[328973222,1718035836496,-500.0,0.00029999,4]
[328973223,1718035836506,-1249.14,0.00029999,4]
[328973224,1718035836517,-500.0,0.00029999,4]
[328973225,1718035836527,-1249.28359257,0.00029999,4]
[328973226,1718035836538,-500.0,0.00029999,4]
[328973227,1718035836548,-500.0,0.00029999,4]
[328973228,1718035836558,-1348.44177418,0.00029999,4]
[328973229,1718035836569,-500.0,0.00029999,4]
[328973230,1718035836579,-500.0,0.00029999,4]
[328973231,1718035836589,-190.65939508,0.00029999,4]
[328973232,1718035836600,-3911.3,0.00029999,4]
[328973233,1718035836612,-3911.3,0.00029999,4]
[328973234,1718035836621,-3911.3,0.00029999,4]
[328973235,1718035836631,-3911.3,0.00029999,4]
[328973236,1718035836641,-3911.3,0.00029999,4]
[328973237,1718035836651,-3911.3,0.00029999,4]
[328973238,1718035836661,-3911.3,0.00029999,4]
[328973239,1718035836671,-3911.3,0.00029999,4]
[328973240,1718035836680,-3911.3,0.00029999,4]
[328973241,1718035836691,-3911.3,0.00029999,4]
[328973242,1718035836701,-3911.3,0.00029999,4]
[328973243,1718035836711,-3911.3,0.00029999,4]
[328973244,1718035836721,-3911.3,0.00029999,4]
[328973245,1718035836731,-3911.3,0.00029999,4]
[328973246,1718035836741,-3911.3,0.00029999,4]
[328973247,1718035836751,-3911.3,0.00029999,4]
[328973248,1718035836762,-3911.3,0.00029999,4]
[328973249,1718035836772,-3911.3,0.00029999,4]
[328973250,1718035836782,-3911.3,0.00029999,4]
[328973251,1718035836792,-3911.3,0.00029999,4]
[328973252,1718035836802,-500.0,0.00029999,4]
[328973253,1718035836812,-68024.17255232,0.0003,13]
[328973254,1718035836822,-68938.45946596,0.0003,2]
[328973255,1718035836869,-756.03810701,0.000298,3]
[328973256,1718035836885,-2258.59189299,0.000298,3]
[328973257,1718035836895,-500.0,0.00029999,4]
[328973258,1718035836906,-3911.3,0.00029999,4]
[328973259,1718035836915,-522111.64447853,0.0003,2]
[328973260,1718035836929,-3421.26789501,0.0003,2]
[328973261,1718035836943,-18835.84576241,0.0003,2]
[328973262,1718035836971,-500.0,0.00029999,4]
[328973263,1718035836981,-3911.52899669,0.00029999,4]
[328973264,1718035836991,-8277.10720247,0.0003,2]
[328973265,1718035837003,-1126.80000001,0.0003,2]
[328973279,1718035838010,-9476.46527426,0.00029789,15]
[328973281,1718035838020,-3014.63,0.000298,3]
[328973283,1718035838030,-3014.63,0.000298,3]
[328973284,1718035838040,-3014.63,0.000298,3]
[328973286,1718035838050,-500.0,0.00029999,4]
[328973288,1718035838060,-500.0,0.00029999,4]
[328973290,1718035838070,-500.0,0.00029999,4]
[328973292,1718035838080,-500.0,0.00029999,4]
[328973294,1718035838090,-500.0,0.00029999,4]
[328973296,1718035838100,-500.0,0.00029999,4]
[328973298,1718035838111,-500.0,0.00029999,4]
[328973300,1718035838121,-500.0,0.00029999,4]
[328973302,1718035838131,-500.0,0.00029999,4]
[328973303,1718035838141,-500.0,0.00029999,4]
[328973305,1718035838151,-500.0,0.00029999,4]
[328973307,1718035838161,-500.0,0.00029999,4]
[328973308,1718035838171,-500.0,0.00029999,4]
[328973309,1718035838180,-500.0,0.00029999,4]
[328973310,1718035838190,-500.0,0.00029999,4]
[328973311,1718035838200,-43895.64472578,0.0003,2]
[328973312,1718035838217,-500.0,0.00029999,4]
[328973313,1718035838227,-608.63360794,0.0003,2]
[328973314,1718035838239,-450.89332225,0.0003,2]
[328973315,1718035838250,-272.32466048,0.0003,2]
[328973316,1718035838262,-261.10428232,0.0003,2]
[328973317,1718035838274,-2330.71214622,0.0003,2]
[328973318,1718035838286,-14007.2,0.0003,2]
[328973328,1718035841767,-9476.46527426,0.00029811,15]
[328973329,1718035841779,-401.77518879,0.00029999,2]
[328973330,1718035841789,-500.0,0.00029999,4]
[328973331,1718035841799,-151.9,0.00029999,4]
[328973332,1718035841810,-1822.31334268,0.0003,2]
[328973333,1718035841822,-12508.88913794,0.0003,2]
[328973334,1718035841834,-3753.150025,0.0003,2]
[328973335,1718035842010,-526.22474152,0.0003,2]
[328973336,1718035842024,-5231.44137185,0.0003,2]
[328973337,1718035842036,-5156.20886332,0.0003,2]
[328973354,1718035843241,-327.47778573,0.000299,2]
[328973356,1718035843252,-3803.27741672,0.0003,2]
[328973373,1718035843417,-9785.5444364,0.0003,2]
[328973375,1718035843430,-51069.39928526,0.0003,2]
[328973377,1718035843687,-1570.55517767,0.0003,2]
[328973378,1718035843700,-855.77296601,0.0003,2]
[328973379,1718035843839,-175255.49731655,0.0003,2]
[328973380,1718035843852,-455.16081093,0.0003,2]
[328973381,1718035844142,-326.06,0.0003,2]
[328973382,1718035844155,-21030.00000001,0.0003,2]
[328973383,1718035844168,-670.7,0.0003,2]
[328973384,1718035844180,-1067.64709304,0.0003,2]
[328973385,1718035844192,-1974.92021585,0.0003,2]
[328973386,1718035844205,-1492.61902837,0.0003,2]
[328973387,1718035844328,-4062.86103156,0.0003,2]
[328973388,1718035844341,-407.06155025,0.0003,2]
[328973389,1718035844353,-3414.95550587,0.0003,2]
[328973390,1718035844368,-4074.31430213,0.0003,2]
[328973391,1718035844380,-3259.23218029,0.0003,2]
[328973392,1718035844483,-171.68,0.00024384,2]
[328973394,1718035844492,-99.58559914,0.0003,2]
[328973567,1718035846493,-469.30795553,0.00029833,15]
[328973568,1718035846505,-9007.15731873,0.00029833,15]
[328973569,1718035846517,-500.0,0.00029998,4]
[328973570,1718035846527,-155.0,0.00029999,2]
[328973571,1718035846536,-27587.84268127,0.0003,2]
[328973572,1718035846548,-2166.1769928,0.0003,2]
[328973573,1718035846607,-377458.36081144,0.0003,2]
[328973574,1718035846620,-1525.32,0.0003,2]
[328973575,1718035846632,-1388.01775311,0.0003,2]
[328973576,1718035846643,-4435.3332493,0.0003,2]
[328973577,1718035846879,-4247.25,0.0003,2]
[328973578,1718035846891,-1599.68385413,0.0003,2]
[328973579,1718035846987,-1221.04577274,0.0003,2]
[328973580,1718035847000,-8972.87043737,0.0003,2]
[328973581,1718035847098,-1647.09143245,0.0003,2]
[328973582,1718035847113,-2779.2,0.0003,2]
[328973583,1718035847210,-1707.0,0.0003,2]
[328973584,1718035847313,-700.28,0.0003,2]
[328973743,1718036759212,-168.3692821,0.00017249,2]
[328973744,1718036825173,-177.17138992,0.00017158,2]
[328973745,1718036825196,-9.9431116,0.00017248,2]
[328973757,1718037032785,-364.78,0.00017149,2]
[328973758,1718037032798,-183.92135201,0.00017149,2]
[328973759,1718037032806,-187.0,0.00017248,2]
[328973760,1718037032816,-150.0,0.00017248,2]
[328973761,1718037032825,-1628.09864799,0.00017249,2]
[328973762,1718037032875,-756.27288357,0.00017249,2]
[328973763,1718037032886,-348.95748955,0.00017249,2]
[328973764,1718037033416,-603.67406118,0.00017249,2]
[328973765,1718037033427,-24758.5058787,0.00017249,2]
[328973766,1718037033437,-1045.79892674,0.00017259,2]
[328973767,1718037033447,-1158.02133961,0.00017259,2]
[328973768,1718037033457,-155.08489314,0.00017259,2]
[328973769,1718037033467,-297752.57398342,0.00017259,2]
[328973770,1718037033477,-1118.82,0.00018973,2]
[328973771,1718037033487,-210.0,0.00018973,2]
[328973772,1718037033497,-499.99,0.00019726,2]
[328973773,1718037033508,-293.0,0.0002087,2]
[328973774,1718037033518,-220.0,0.00022957,2]
[328973775,1718037033528,-155.03,0.00024384,2]
[328973776,1718037033538,-161.38,0.00024384,2]
[328973777,1718037033548,-354.42,0.00024389,2]
[328973778,1718037033558,-3108.45836492,0.00024798,2]
[328973779,1718037033568,-3108.4583649,0.00024798,2]
[328973780,1718037033578,-3108.4583649,0.00024798,2]
[328973781,1718037033588,-3108.4583649,0.00024798,2]
[328973782,1718037033598,-3108.4583649,0.00024798,2]
[328973783,1718037033608,-393.37228269,0.00024799,2]
[328973784,1718037033618,-393.3722826,0.00024799,2]
[328973785,1718037033627,-393.3722826,0.00024799,2]
[328973786,1718037033637,-393.3722826,0.00024799,2]
[328973787,1718037033647,-393.3722826,0.00024799,2]
[328973788,1718037033656,-393.3722826,0.00024937,2]
[328973789,1718037033666,-2805.797397,0.0002496,2]
[328973840,1718037042840,-226.69645122,0.000201,2]
[328973841,1718037042851,-302.6609679,0.0002496,2]
[328973842,1718037042861,-393.3722826,0.00026178,2]
[328973844,1718037042875,-3108.4583649,0.00026195,2]
[328973846,1718037042887,-250.0,0.00026502,2]
[328973848,1718037042902,-190.81989689,0.00026517,2]
[328973850,1718037042917,-23709.18010311,0.00026517,2]
[328973853,1718037042930,-250.0,0.00026583,2]
[328973855,1718037042941,-354.42,0.00026653,2]
[328973857,1718037042952,-158.06201661,0.00027034,2]
[328973859,1718037042964,-215.56,0.0002706,2]
[328973861,1718037042976,-454.83,0.0002714,2]
[328973862,1718037042989,-154.6922437,0.00027234,2]
[328973863,1718037043000,-158.06201661,0.00027274,2]
[328973864,1718037043010,-393.3722826,0.00027419,2]
[328973866,1718037043021,-9719.30593214,0.00027429,2]
[328973868,1718037043032,-3108.4583649,0.0002743,2]
[328973870,1718037043042,-1000.0,0.00027575,2]
[328973872,1718037043052,-169.1813528,0.00027583,2]
[328973874,1718037043063,-1877.4370433,0.00027858,2]
[328973876,1718037043075,-154.6922437,0.00028335,2]
[328973878,1718037043087,-393.3722826,0.00028659,2]
[328973880,1718037043098,-3108.4583649,0.00028665,2]
[328973882,1718037043109,-154.6922437,0.00028683,2]
[328973884,1718037043122,-354.42,0.00028917,2]
[328973886,1718037043132,-1013.26,0.000293,2]
[328973889,1718037043144,-2106.639,0.00029328,2]
[328973890,1718037043155,-500.0,0.00029411,3]
[328973891,1718037043166,-159.0093876,0.0002943,2]
[328973892,1718037043179,-159.0093876,0.00029436,2]
[328973893,1718037043190,-500.0,0.00029443,2]
[328973894,1718037043201,-161.39797392,0.00029473,2]
[328973895,1718037043212,-226.83464883,0.000295,3]
[328973896,1718037043224,-161.39797393,0.00029526,2]
[328973897,1718037043236,-188.771115,0.00029589,14]
[328973899,1718037043247,-366.86756743,0.000296,2]
[328973900,1718037043258,-1700.0,0.000297,2]
[328973901,1718037043270,-1700.0,0.000297,2]
[328973902,1718037043281,-1700.0,0.000297,2]
[328973903,1718037043294,-1700.0,0.000297,2]
[328973904,1718037043306,-1700.0,0.000297,2]
[328973905,1718037043317,-1700.0,0.000297,2]
[328973906,1718037043330,-1158.4351381,0.000297,2]
[328973907,1718037043402,-541.5648619,0.000297,2]
[328973908,1718037043414,-1700.0,0.000297,2]
[328973909,1718037043427,-655.19099806,0.000297,2]
[328973910,1718037043443,-1044.80900194,0.000297,2]
[328973911,1718037043454,-597.86991576,0.000297,2]
[328973912,1718037043467,-673.38953007,0.000297,2]
[328973913,1718037043481,-383.65,0.000297,2]
[328973914,1718037043495,-45.09055417,0.000297,2]
[328973915,1718037043506,-216.80944583,0.000297,2]
[328973916,1718037043519,-849.33,0.000297,2]
[328973917,1718037043532,-325.82,0.000297,2]
[328973918,1718037043547,-308.04055417,0.000297,2]
[328973919,1718037043560,-564.51971257,0.000297,2]
[328973920,1718037043592,-1135.48028743,0.000297,2]
[328973921,1718037043603,-1700.0,0.000297,2]
[328973922,1718037043614,-1304.27168455,0.000297,2]
[328973923,1718037043627,-395.72831545,0.000297,2]
[328973924,1718037043640,-301.69082444,0.000297,2]
[328973925,1718037043653,-505.3,0.000297,2]
[328973926,1718037043667,-425.80000015,0.000297,2]
[328973927,1718037043682,-467.20917541,0.000297,2]
[328973928,1718037043693,-1700.0,0.000297,2]
[328973929,1718037043704,-1700.0,0.000297,2]
[328973931,1718037043714,-1700.0,0.000297,2]
[328973932,1718037043725,-1700.0,0.000297,2]
[328973933,1718037043735,-1700.0,0.000297,2]
[328973934,1718037043747,-1700.0,0.000297,2]
[328973935,1718037043758,-1700.0,0.000297,2]
[328973936,1718037043770,-797.0,0.000297,2]
[328973937,1718037043781,-2863.97,0.000298,3]
[328973938,1718037043792,-2863.97,0.000298,3]
[328973939,1718037043803,-2863.97,0.000298,3]
[328973941,1718037043814,-2863.97,0.000298,3]
[328973943,1718037043825,-2863.97,0.000298,3]
[328973945,1718037043836,-2863.97,0.000298,3]
[328973946,1718037043848,-2863.97,0.000298,3]
[328973948,1718037043858,-2165.12299211,0.000298,3]
[328973950,1718037043871,-698.84700789,0.000298,3]
[328973951,1718037043883,-173.57651938,0.000298,3]
[328973952,1718037043904,-338.69039356,0.000298,3]
[328973953,1718037043918,-672.90404896,0.000298,3]
[328973955,1718037043934,-1678.7990381,0.000298,3]
[328973957,1718037043945,-2863.97,0.000298,3]
[328973959,1718037043956,-2863.97,0.000298,3]
[328973961,1718037043968,-2863.97,0.000298,3]
[328973964,1718037043980,-632.27806608,0.000298,3]
[328973966,1718037043996,-2231.69193392,0.000298,3]
[328973968,1718037044007,-1164.35091306,0.000298,3]
[328973972,1718037044034,-416.59757691,0.000298,3]
[328973974,1718037044048,-1283.02151003,0.000298,3]
[328973976,1718037044059,-651.00550549,0.000298,3]
[328973979,1718037044074,-2212.96449451,0.000298,3]
[328973981,1718037044086,-2863.97,0.000298,3]
[328973983,1718037044098,-2863.97,0.000298,3]
[328973985,1718037044108,-2863.97,0.000298,3]
[328973986,1718037044119,-155.0,0.000298,2]
[328973987,1718037044130,-154.69224373,0.00029884,2]
[328973988,1718037044140,-369.395,0.00029898,2]
[328973990,1718037044152,-676.15268185,0.000299,2]
[328973991,1718037044162,-161.84597815,0.000299,2]
[328973992,1718037044174,-3108.4583649,0.000299,15]
[328973993,1718037044185,-2665.20995499,0.000299,2]
[328973994,1718037044196,-393.3722826,0.000299,15]
[328973995,1718037044207,-177.6625309,0.000299,2]
[328973996,1718037044218,-2054.00179726,0.0002998,3]
[328973997,1718037044229,-2052.557526,0.0002999,3]
[328973998,1718037044240,-500.0,0.00029997,4]
[328974000,1718037044252,-599.43554481,0.00029997,4]
[328974002,1718037044263,-500.0,0.00029997,4]
[328974004,1718037044274,-500.0,0.00029997,4]
[328974005,1718037044285,-592.33969537,0.00029997,4]
[328974008,1718037044297,-510.4,0.00029997,4]
[328974010,1718037044307,-500.0,0.00029997,4]
[328974012,1718037044318,-500.0,0.00029997,4]
[328974014,1718037044331,-313.72,0.00029997,4]
[328974016,1718037044345,-500.0,0.00029997,4]
[328974019,1718037044356,-500.0,0.00029997,4]
[328974021,1718037044367,-500.0,0.00029997,4]
[328974023,1718037044377,-500.0,0.00029997,4]
[328974025,1718037044387,-500.0,0.00029997,4]
[328974027,1718037044398,-500.0,0.00029997,4]
[328974029,1718037044409,-235.93,0.00029997,4]
[328974031,1718037044420,-500.0,0.00029997,4]
[328974033,1718037044432,-224.72550388,0.00029997,4]
[328974035,1718037044444,-500.0,0.00029997,4]
[328974037,1718037044457,-500.0,0.00029997,4]
[328974039,1718037044467,-500.0,0.00029997,4]
[328974041,1718037044478,-500.0,0.00029997,4]
[328974043,1718037044489,-633.9100724,0.00029997,4]
[328974045,1718037044501,-500.0,0.00029997,4]
[328974048,1718037044512,-500.0,0.00029997,4]
[328974050,1718037044523,-261.65497872,0.00029997,4]
[328974052,1718037044534,-500.0,0.00029997,4]
[328974054,1718037044544,-503.62,0.00029997,4]
[328974056,1718037044554,-500.0,0.00029997,4]
[328974058,1718037044564,-516.03527903,0.00029997,4]
[328974060,1718037044575,-500.0,0.00029997,4]
[328974062,1718037044586,-500.0,0.00029997,4]
[328974064,1718037044596,-500.0,0.00029997,4]
[328974066,1718037044607,-500.0,0.00029997,4]
[328974068,1718037044618,-500.0,0.00029997,4]
[328974070,1718037044628,-500.0,0.00029997,4]
[328974072,1718037044639,-500.0,0.00029997,4]
[328974074,1718037044650,-500.0,0.00029997,4]
[328974076,1718037044660,-500.0,0.00029997,4]
[328974078,1718037044671,-500.0,0.00029997,4]
[328974080,1718037044684,-500.0,0.00029997,4]
[328974082,1718037044695,-500.0,0.00029997,4]
[328974085,1718037044707,-500.0,0.00029997,4]
[328974087,1718037044720,-500.0,0.00029997,4]
[328974089,1718037044731,-500.0,0.00029997,4]
[328974091,1718037044742,-1027.96715026,0.00029998,2]
[328974093,1718037044752,-1624.86434005,0.00029998,2]
[328974095,1718037044764,-9917.27745119,0.00029998,2]
[328974097,1718037044775,-833.47563894,0.00029998,2]
[328974099,1718037044786,-634.34704757,0.00029998,4]
[328974101,1718037044797,-500.0,0.00029998,4]
[328974103,1718037044807,-500.0,0.00029998,4]
[328974105,1718037044818,-500.0,0.00029998,4]
[328974107,1718037044830,-500.0,0.00029998,4]
[328974110,1718037044841,-500.0,0.00029998,4]
[328974111,1718037044851,-403.78649963,0.00029998,4]
[328974114,1718037044863,-500.0,0.00029998,4]
[328974116,1718037044873,-500.0,0.00029998,4]
[328974118,1718037044884,-500.0,0.00029998,4]
[328974120,1718037044895,-500.0,0.00029998,4]
[328974122,1718037044912,-500.0,0.00029998,4]
[328974124,1718037044922,-500.0,0.00029998,4]
[328974126,1718037044934,-500.0,0.00029998,4]
[328974128,1718037044944,-500.0,0.00029998,4]
[328974130,1718037044955,-534.58,0.00029998,4]
[328974132,1718037044966,-500.0,0.00029998,4]
[328974134,1718037044976,-500.0,0.00029998,4]
[328974136,1718037044987,-500.0,0.00029998,4]
[328974138,1718037044998,-500.0,0.00029998,4]
[328974140,1718037045008,-500.0,0.00029998,4]
[328974142,1718037045019,-513.77,0.00029998,4]
[328974144,1718037045030,-500.0,0.00029998,4]
[328974147,1718037045040,-500.0,0.00029998,4]
[328974149,1718037045051,-500.0,0.00029998,4]
[328974151,1718037045062,-500.0,0.00029998,4]
[328974153,1718037045073,-500.0,0.00029998,4]
[328974155,1718037045083,-500.0,0.00029998,4]
[328974157,1718037045094,-500.0,0.00029998,4]
[328974159,1718037045105,-500.0,0.00029998,4]
[328974161,1718037045115,-150.0,0.00029998,4]
[328974163,1718037045126,-500.0,0.00029998,4]
[328974165,1718037045136,-500.0,0.00029998,4]
[328974167,1718037045147,-500.0,0.00029998,4]
[328974169,1718037045157,-500.0,0.00029998,4]
[328974171,1718037045168,-500.0,0.00029998,4]
[328974173,1718037045180,-476.56012934,0.00029998,4]
[328974176,1718037045191,-500.0,0.00029998,4]
[328974178,1718037045202,-500.0,0.00029998,4]
[328974180,1718037045213,-500.0,0.00029998,4]
[328974182,1718037045223,-500.0,0.00029998,4]
[328974183,1718037045233,-500.0,0.00029998,4]
[328974186,1718037045244,-168.3692821,0.00029998,2]
[328974188,1718037045255,-500.0,0.00029998,4]
[328974190,1718037045265,-395.84985283,0.00029998,4]
[328974194,1718037045294,-104.15014717,0.00029998,4]
[328974196,1718037045305,-378.59757308,0.00029998,4]
[328974198,1718037045318,-121.40242692,0.00029998,4]
[328974200,1718037045329,-500.0,0.00029998,4]
[328974202,1718037045344,-500.0,0.00029998,4]
[328974204,1718037045354,-441.68,0.00029998,4]
[328974206,1718037045366,-500.0,0.00029998,4]
[328974208,1718037045377,-500.0,0.00029998,4]
[328974210,1718037045388,-500.0,0.00029998,4]
[328974212,1718037045399,-304.67756144,0.00029998,2]
[328974214,1718037045409,-263.32125257,0.00029998,4]
[328974216,1718037045422,-500.0,0.00029998,4]
[328974219,1718037045434,-493.49983679,0.00029998,4]
[328974221,1718037045444,-165.37736907,0.00029998,4]
[328974223,1718037045455,-500.0,0.00029998,4]
[328974225,1718037045466,-565.64,0.00029998,4]
[328974227,1718037045477,-500.0,0.00029998,4]
[328974229,1718037045488,-211.28,0.00029998,4]
[328974231,1718037045498,-500.0,0.00029998,4]
[328974233,1718037045514,-500.0,0.00029998,4]
[328974235,1718037045524,-500.0,0.00029998,4]
[328974237,1718037045535,-500.0,0.00029998,4]
[328974239,1718037045545,-500.0,0.00029998,4]
[328974241,1718037045556,-500.0,0.00029998,4]
[328974243,1718037045568,-500.0,0.00029998,4]
[328974246,1718037045579,-500.0,0.00029998,4]
[328974248,1718037045591,-500.0,0.00029998,4]
[328974274,1718037045844,-500.0,0.00029998,4]
[328974276,1718037045855,-500.0,0.00029998,4]
[328974278,1718037045866,-500.0,0.00029998,4]
[328974280,1718037045876,-500.0,0.00029998,4]
[328974282,1718037045886,-500.0,0.00029998,4]
[328974284,1718037045902,-500.0,0.00029998,4]
[328974287,1718037045913,-565.9639135,0.00029999,2]
[328974289,1718037045925,-621.20003601,0.00029999,2]
[328974290,1718037045936,-500.0,0.00029999,4]
[328974292,1718037045947,-561.30387377,0.00029999,4]
[328974294,1718037045958,-500.0,0.00029999,4]
[328974297,1718037045971,-500.0,0.00029999,4]
[328974299,1718037045982,-500.0,0.00029999,4]
[328974301,1718037045994,-500.0,0.00029999,4]
[328974303,1718037046006,-500.0,0.00029999,4]
[328974305,1718037046017,-500.0,0.00029999,4]
[328974307,1718037046028,-552.77800837,0.00029999,4]
[328974309,1718037046040,-500.0,0.00029999,4]
[328974311,1718037046050,-500.0,0.00029999,4]
[328974313,1718037046061,-500.0,0.00029999,4]
[328974315,1718037046072,-500.0,0.00029999,4]
[328974317,1718037046082,-500.0,0.00029999,4]
[328974319,1718037046092,-346.349378,0.00029999,4]
[328974321,1718037046103,-500.0,0.00029999,4]
[328974323,1718037046114,-543.46376708,0.00029999,4]
[328974325,1718037046124,-500.0,0.00029999,4]
[328974327,1718037046134,-277.08068286,0.00029999,4]
[328974329,1718037046144,-500.0,0.00029999,4]
[328974331,1718037046155,-498.5994,0.00029999,4]
[328974333,1718037046165,-500.0,0.00029999,4]
[328974335,1718037046178,-500.0,0.00029999,4]
[328974337,1718037046188,-500.0,0.00029999,4]
[328974339,1718037046199,-500.0,0.00029999,4]
[328974341,1718037046209,-500.0,0.00029999,4]
[328974343,1718037046220,-500.0,0.00029999,4]
[328974345,1718037046232,-500.0,0.00029999,4]
[328974347,1718037046243,-500.0,0.00029999,4]
[328974349,1718037046254,-500.0,0.00029999,4]
[328974351,1718037046266,-500.0,0.00029999,4]
[328974353,1718037046276,-155.99669593,0.00029999,4]
[328974355,1718037046287,-610.27552011,0.00029999,4]
[328974357,1718037046297,-500.0,0.00029999,4]
[328974359,1718037046309,-500.0,0.00029999,4]
[328974361,1718037046320,-500.0,0.00029999,4]
[328974363,1718037046333,-500.0,0.00029999,4]
[328974365,1718037046344,-500.0,0.00029999,4]
[328974367,1718037046354,-500.0,0.00029999,4]
[328974369,1718037046364,-588.58,0.00029999,4]
[328974371,1718037046375,-500.0,0.00029999,4]
[328974373,1718037046385,-506.24893441,0.00029999,4]
[328974375,1718037046397,-500.0,0.00029999,4]
[328974378,1718037046409,-2146.95485,0.00029999,2]
[328974380,1718037046419,-500.0,0.00029999,4]
[328974382,1718037046432,-500.0,0.00029999,4]
[328974384,1718037046442,-577.26,0.00029999,4]
[328974387,1718037046452,-177.06234924,0.00029999,4]
[328974389,1718037046462,-500.0,0.00029999,4]
[328974391,1718037046472,-500.0,0.00029999,4]
[328974393,1718037046482,-500.0,0.00029999,4]
[328974395,1718037046492,-500.0,0.00029999,4]
[328974397,1718037046504,-606.30568013,0.00029999,4]